DEPARTMENT FAMILY,ENTITY,DATE,EXPENSE TYPE,EXPENSE AREA,SUPPLIER,TRANSACTION NUMBER,AMOUNT,DESCRIPTION
DEPARTMENT OF HEALTH,BLACKPOOL TEACHING HOSPITALS NHS FT,04-Jul-14,PACEMAKERS,CARDIAC,BOSTON SCIENTIFIC LTD,5140189,"26,022.00",APPLIANCES AND IMPLANTS
DEPARTMENT OF HEALTH,BLACKPOOL TEACHING HOSPITALS NHS FT,11-Jul-14,PACEMAKERS,CARDIAC,BOSTON SCIENTIFIC LTD,5142779,"28,800.00",APPLIANCES AND IMPLANTS
DEPARTMENT OF HEALTH,BLACKPOOL TEACHING HOSPITALS NHS FT,11-Jul-14,PACEMAKERS,CARDIAC,BOSTON SCIENTIFIC LTD,5142780,"62,928.00",APPLIANCES AND IMPLANTS
DEPARTMENT OF HEALTH,BLACKPOOL TEACHING HOSPITALS NHS FT,21-Jul-14,PACEMAKERS,CARDIAC,BOSTON SCIENTIFIC LTD,5144932,"43,080.00",APPLIANCES AND IMPLANTS
DEPARTMENT OF HEALTH,BLACKPOOL TEACHING HOSPITALS NHS FT,22-Jul-14,PACEMAKERS,CARDIAC,BOSTON SCIENTIFIC LTD,5145258,"115,861.20",APPLIANCES AND IMPLANTS
DEPARTMENT OF HEALTH,BLACKPOOL TEACHING HOSPITALS NHS FT,28-Jul-14,HEART VALVES,CARDIAC,EDWARDS LIFESCIENCES LTD,5146646,"44,326.00",APPLIANCES AND IMPLANTS
DEPARTMENT OF HEALTH,BLACKPOOL TEACHING HOSPITALS NHS FT,17-Jul-14,LABORATORY EQUIPMENT,PATHOLOGY,SIEMENS HEALTHCARE DIAGNOSTICS LTD,5144111,"29,225.87",LABORATORY EQUIPMENT - PURCHASES
DEPARTMENT OF HEALTH,BLACKPOOL TEACHING HOSPITALS NHS FT,28-Jul-14,LABORATORY EQUIPMENT,PATHOLOGY,SIEMENS HEALTHCARE DIAGNOSTICS LTD,5146585,"56,385.22",LABORATORY EQUIPMENT - PURCHASES
DEPARTMENT OF HEALTH,BLACKPOOL TEACHING HOSPITALS NHS FT,28-Jul-14,LABORATORY REAGENTS,PATHOLOGY,SIEMENS HEALTHCARE DIAGNOSTICS LTD,5146586,"67,662.26",LABORATORY EQUIPMENT - PURCHASES
DEPARTMENT OF HEALTH,BLACKPOOL TEACHING HOSPITALS NHS FT,28-Jul-14,LABORATORY REAGENTS,PATHOLOGY,SIEMENS HEALTHCARE DIAGNOSTICS LTD,5146587,"56,385.22",LABORATORY EQUIPMENT - PURCHASES
DEPARTMENT OF HEALTH,BLACKPOOL TEACHING HOSPITALS NHS FT,29-Jul-14,LABORATORY EQUIPMENT,PATHOLOGY,SIEMENS HEALTHCARE DIAGNOSTICS LTD,5147031,"56,385.22",LABORATORY EQUIPMENT - PURCHASES
DEPARTMENT OF HEALTH,BLACKPOOL TEACHING HOSPITALS NHS FT,14-Jul-14,COMPUTER MAINTENANCE,PATHOLOGY,CLINISYS SOLUTIONS LTD,5142965,"146,012.10","FURNITURE, OFFICE AND COMPUTER EQUIPMENT"
DEPARTMENT OF HEALTH,BLACKPOOL TEACHING HOSPITALS NHS FT,25-Jul-14,NON HEALTHCARE SERVICES FROM OTHER NHS BODIES,RADIOLOGY,NHS PROPERTY SERVICES LTD,5146095,"37,890.98",PROPERTY RENTAL
DEPARTMENT OF HEALTH,BLACKPOOL TEACHING HOSPITALS NHS FT,16-Jul-14,NON HEALTHCARE SERVICES FROM OTHER NHS BODIES,SPECIALIST MEDICINE,LANCASHIRE TEACHING HOSPITALS NHS FOUNDATION TRUST,5143650,"30,703.00",SERVICES RECEIVED FROM N.H.S. BODIES
DEPARTMENT OF HEALTH,BLACKPOOL TEACHING HOSPITALS NHS FT,09-Jul-14,PHARMACY PRESCRIPTIONS,PHARMACY DRUGS INVENTORY,NHS BSA PRESCRIPTION PRICING DIVISION,5142103,"35,794.93",SERVICES RECEIVED FROM N.H.S. BODIES
DEPARTMENT OF HEALTH,BLACKPOOL TEACHING HOSPITALS NHS FT,31-Jul-14,PHARMACY PRESCRIPTIONS,PHARMACY DRUGS INVENTORY,NHS BUSINESS SERVICES AUTHORITY,5147494,"34,310.48",SERVICES RECEIVED FROM N.H.S. BODIES
DEPARTMENT OF HEALTH,BLACKPOOL TEACHING HOSPITALS NHS FT,31-Jul-14,PHARMACY PRESCRIPTIONS,PHARMACY DRUGS INVENTORY,NHS BSA PRESCRIPTION PRICING DIVISION,5147496,"34,310.48",SERVICES RECEIVED FROM N.H.S. BODIES
DEPARTMENT OF HEALTH,BLACKPOOL TEACHING HOSPITALS NHS FT,02-Jul-14,HEALTHCARE FROM INDEPENDENT SECTOR,SPECIALIST SURGERY,SPIRAL HEALTH CIC,5139576,"256,555.00",PURCHASE OF HEALTH CARE SERVICES
DEPARTMENT OF HEALTH,BLACKPOOL TEACHING HOSPITALS NHS FT,02-Jul-14,HEALTHCARE FROM INDEPENDENT SECTOR,SPECIALIST SURGERY,SPIRAL HEALTH CIC,5139577,"125,916.67",PURCHASE OF HEALTH CARE SERVICES
DEPARTMENT OF HEALTH,BLACKPOOL TEACHING HOSPITALS NHS FT,23-Jul-14,NON HEALTHCARE SERVICES FROM OTHER NHS BODIES,SPECIALIST MEDICINE,EAST LANCASHIRE HOSPITALS NHS TRUST,5145507,"42,683.00",BOWEL CANCER SCREENING
DEPARTMENT OF HEALTH,BLACKPOOL TEACHING HOSPITALS NHS FT,24-Jul-14,NON HEALTHCARE SERVICES FROM OTHER NHS BODIES,SPECIALIST MEDICINE,LANCASHIRE TEACHING HOSPITALS NHS FOUNDATION TRUST,5145613,"51,027.00",BOWEL CANCER SCREENING
DEPARTMENT OF HEALTH,BLACKPOOL TEACHING HOSPITALS NHS FT,02-Jul-14,EXTERNAL CONTRACTS : DOMESTICS,SOFT FM,ISS FACILITY SERVICES HEALTHCARE,5139498,"294,829.06",CLEANING SERVICES
DEPARTMENT OF HEALTH,BLACKPOOL TEACHING HOSPITALS NHS FT,10-Jul-14,EXTERNAL CONTRACTS : DOMESTICS,SOFT FM,ISS FACILITY SERVICES HEALTHCARE,5142227,"294,829.06",CLEANING SERVICES
DEPARTMENT OF HEALTH,BLACKPOOL TEACHING HOSPITALS NHS FT,30-Jul-14,EXTERNAL CONTRACTS : DOMESTICS,SOFT FM,ISS FACILITY SERVICES HEALTHCARE,5147346,"302,282.51",CLEANING SERVICES
DEPARTMENT OF HEALTH,BLACKPOOL TEACHING HOSPITALS NHS FT,07-Jul-14,EXTERNAL CONTRACTS : LAUNDRY,SOFT FM,EXPRESS LAUNDERERS,5140469,"124,000.00",LAUNDRY SERVICES
DEPARTMENT OF HEALTH,BLACKPOOL TEACHING HOSPITALS NHS FT,15-Jul-14,EXTERNAL CONTRACTS : LAUNDRY,SOFT FM,EXPRESS LAUNDERERS,5143283,"62,000.00",LAUNDRY SERVICES
DEPARTMENT OF HEALTH,BLACKPOOL TEACHING HOSPITALS NHS FT,07-Jul-14,UTILITIES,HARD FM,NPOWER LTD,5141435,"147,101.37",ELECTRICITY
DEPARTMENT OF HEALTH,BLACKPOOL TEACHING HOSPITALS NHS FT,10-Jul-14,UTILITIES,HARD FM,GAZPROM MARKETING AND TRADING RETAIL LTD,5142130,"51,400.13",GAS
DEPARTMENT OF HEALTH,BLACKPOOL TEACHING HOSPITALS NHS FT,14-Jul-14,UTILITIES,HARD FM,UNITED UTILITIES,5142926,"39,511.10",WATER
DEPARTMENT OF HEALTH,BLACKPOOL TEACHING HOSPITALS NHS FT,07-Jul-14,X-RAY EQUIPMENT : MAINTENANCE,EBME,NHS SUPPLY CHAIN,5141358,"57,507.48",X-RAY EQUIPMENT - MAINTENANCE
DEPARTMENT OF HEALTH,BLACKPOOL TEACHING HOSPITALS NHS FT,07-Jul-14,X-RAY EQUIPMENT : MAINTENANCE,EBME,NHS SUPPLY CHAIN,5141359,"57,507.48",X-RAY EQUIPMENT - MAINTENANCE
DEPARTMENT OF HEALTH,BLACKPOOL TEACHING HOSPITALS NHS FT,29-Jul-14,EXTERNAL CONSULTANCY FEES,FINANCE,GRANT THORNTON UK LLP,5146883,"28,998.49",EXTERNAL CONTRACT STAFFING AND CONSULTANCY
DEPARTMENT OF HEALTH,BLACKPOOL TEACHING HOSPITALS NHS FT,21-Jul-14,COMPUTER MAINTENANCE,ICT,INTEGRATED MEDICAL SOLUTIONS LTD,5145023,"41,958.00","FURNITURE, OFFICE AND COMPUTER EQUIPMENT"
DEPARTMENT OF HEALTH,BLACKPOOL TEACHING HOSPITALS NHS FT,09-Jul-14,CONFERENCES AND SEMINARS,HR & OD,LANCASTER UNIVERSITY,5141944,"39,204.00",TRAINING
DEPARTMENT OF HEALTH,BLACKPOOL TEACHING HOSPITALS NHS FT,24-Jul-14,NON HEALTHCARE SERVICES FROM OTHER NHS BODIES,DIVISIONAL MANAGEMENT,NHS PROPERTY SERVICES LTD,5145614,"103,990.55",PROPERTY RENTAL
DEPARTMENT OF HEALTH,BLACKPOOL TEACHING HOSPITALS NHS FT,25-Jul-14,NON HEALTHCARE SERVICES FROM OTHER NHS BODIES,DIVISIONAL MANAGEMENT,NHS PROPERTY SERVICES LTD,5146097,"86,658.79",PROPERTY RENTAL
DEPARTMENT OF HEALTH,BLACKPOOL TEACHING HOSPITALS NHS FT,25-Jul-14,NON HEALTHCARE SERVICES FROM OTHER NHS BODIES,DIVISIONAL MANAGEMENT,NHS PROPERTY SERVICES LTD,5146099,"54,365.23",PROPERTY RENTAL
DEPARTMENT OF HEALTH,BLACKPOOL TEACHING HOSPITALS NHS FT,25-Jul-14,NON HEALTHCARE SERVICES FROM OTHER NHS BODIES,DIVISIONAL MANAGEMENT,NHS PROPERTY SERVICES LTD,5146100,"21,667.23",PROPERTY RENTAL
DEPARTMENT OF HEALTH,BLACKPOOL TEACHING HOSPITALS NHS FT,10-Jul-14,NON HEALTHCARE SERVICES FROM FOUNDATION TRUSTS,DIVISIONAL MANAGEMENT,LANCASHIRE CARE NHS FOUNDATION TRUST,5142145,"38,705.00",SERVICES RECEIVED FROM N.H.S. BODIES
DEPARTMENT OF HEALTH,BLACKPOOL TEACHING HOSPITALS NHS FT,02-Jul-14,COMPUTER HARDWARE PURCHASES,DIVISIONAL MANAGEMENT,VODAFONE LTD,5139581,"27,840.00","FURNITURE, OFFICE AND COMPUTER EQUIPMENT"
DEPARTMENT OF HEALTH,BLACKPOOL TEACHING HOSPITALS NHS FT,15-Jul-14,CAPITAL PURCHASES,CAPITAL PURCHASES,PHILIPS HEALTHCARE,5143278,"62,803.20",CAPITAL PURCHASES
DEPARTMENT OF HEALTH,BLACKPOOL TEACHING HOSPITALS NHS FT,29-Jul-14,CAPITAL PURCHASES,CAPITAL PURCHASES,SIEMENS HEALTHCARE DIAGNOSTICS LTD,5146951,"26,772.90",CAPITAL PURCHASES
DEPARTMENT OF HEALTH,BLACKPOOL TEACHING HOSPITALS NHS FT,22-Jul-14,CAPITAL PURCHASES,CAPITAL PURCHASES,SPIRAX-SARCO LTD,5145081,"57,807.13",CAPITAL PURCHASES
DEPARTMENT OF HEALTH,BLACKPOOL TEACHING HOSPITALS NHS FT,15-Jul-14,CAPITAL PURCHASES,CAPITAL PURCHASES,CHRIS BOWKER LTD,5143275,"184,647.11",CAPITAL PURCHASES
DEPARTMENT OF HEALTH,BLACKPOOL TEACHING HOSPITALS NHS FT,11-Jul-14,CAPITAL PURCHASES,CAPITAL PURCHASES,PHILIPS HEALTHCARE,5142884,"369,360.00",CAPITAL PURCHASES
DEPARTMENT OF HEALTH,BLACKPOOL TEACHING HOSPITALS NHS FT,03-Jul-14,PHARMACY DRUGS INVENTORY,PHARMACY DRUGS INVENTORY,NOVARTIS PHARMACEUTICALS UK LTD,5139833,"32,061.60",PHARMACY STORES 
DEPARTMENT OF HEALTH,BLACKPOOL TEACHING HOSPITALS NHS FT,03-Jul-14,PHARMACY DRUGS INVENTORY,PHARMACY DRUGS INVENTORY,NOVARTIS PHARMACEUTICALS UK LTD,5139837,"55,386.77",PHARMACY STORES 
DEPARTMENT OF HEALTH,BLACKPOOL TEACHING HOSPITALS NHS FT,03-Jul-14,PHARMACY DRUGS INVENTORY,PHARMACY DRUGS INVENTORY,ROCHE PRODUCTS LTD,5139849,"25,158.34",PHARMACY STORES 
DEPARTMENT OF HEALTH,BLACKPOOL TEACHING HOSPITALS NHS FT,07-Jul-14,PHARMACY DRUGS INVENTORY,PHARMACY DRUGS INVENTORY,ROCHE PRODUCTS LTD,5141051,"33,471.41",PHARMACY STORES 
DEPARTMENT OF HEALTH,BLACKPOOL TEACHING HOSPITALS NHS FT,07-Jul-14,PHARMACY DRUGS INVENTORY,PHARMACY DRUGS INVENTORY,ROCHE PRODUCTS LTD,5141052,"43,250.39",PHARMACY STORES 
DEPARTMENT OF HEALTH,BLACKPOOL TEACHING HOSPITALS NHS FT,10-Jul-14,PHARMACY DRUGS INVENTORY,PHARMACY DRUGS INVENTORY,LLOYDS PHARMACY LTD,5142364,"341,278.42",PHARMACY STORES 
DEPARTMENT OF HEALTH,BLACKPOOL TEACHING HOSPITALS NHS FT,10-Jul-14,PHARMACY DRUGS INVENTORY,PHARMACY DRUGS INVENTORY,LLOYDS PHARMACY LTD,5142365,"341,554.10",PHARMACY STORES 
DEPARTMENT OF HEALTH,BLACKPOOL TEACHING HOSPITALS NHS FT,18-Jul-14,PHARMACY DRUGS INVENTORY,PHARMACY DRUGS INVENTORY,ROCHE PRODUCTS LTD,5144635,"41,854.06",PHARMACY STORES 
DEPARTMENT OF HEALTH,BLACKPOOL TEACHING HOSPITALS NHS FT,29-Jul-14,PHARMACY DRUGS INVENTORY,PHARMACY DRUGS INVENTORY,ROCHE PRODUCTS LTD,5146923,"52,190.77",PHARMACY STORES 
DEPARTMENT OF HEALTH,BLACKPOOL TEACHING HOSPITALS NHS FT,02-Jul-14,INTER NHS MEDICAL STAFF RECHARGES,MULTI-DIVISON,PENNINE ACUTE HOSPITALS NHS TRUST,5139573,"550,000.00",INTER NHS MEDICAL STAFF RECHARGES
DEPARTMENT OF HEALTH,BLACKPOOL TEACHING HOSPITALS NHS FT,02-Jul-14,INTER NHS MEDICAL STAFF RECHARGES,MULTI-DIVISON,PENNINE ACUTE HOSPITALS NHS TRUST,5139574,"100,000.00",INTER NHS MEDICAL STAFF RECHARGES
DEPARTMENT OF HEALTH,BLACKPOOL TEACHING HOSPITALS NHS FT,08-Jul-14,NHS SUPPLY CHAIN CATALOGUE ITEMS,MULTI-DIVISIONAL CHARGE,NHS SUPPLY CHAIN,5141506,"101,417.37",NHS SUPPLY CHAIN CATALOGUE ITEMS
DEPARTMENT OF HEALTH,BLACKPOOL TEACHING HOSPITALS NHS FT,14-Jul-14,NHS SUPPLY CHAIN CATALOGUE ITEMS,MULTI-DIVISIONAL CHARGE,NHS SUPPLY CHAIN,5143172,"106,149.53",NHS SUPPLY CHAIN CATALOGUE ITEMS
DEPARTMENT OF HEALTH,BLACKPOOL TEACHING HOSPITALS NHS FT,21-Jul-14,NHS SUPPLY CHAIN CATALOGUE ITEMS,MULTI-DIVISIONAL CHARGE,NHS SUPPLY CHAIN,5145055,"104,911.01",NHS SUPPLY CHAIN CATALOGUE ITEMS
DEPARTMENT OF HEALTH,BLACKPOOL TEACHING HOSPITALS NHS FT,28-Jul-14,NHS SUPPLY CHAIN CATALOGUE ITEMS,MULTI-DIVISIONAL CHARGE,NHS SUPPLY CHAIN,5146821,"116,615.67",NHS SUPPLY CHAIN CATALOGUE ITEMS
